[Event "Late-Titled-Tuesday-Blitz-April-16-2024"]
[Site "Chess.com"]
[Date "2024.04.16"]
[Round "5"]
[White "DanielDardha2005"]
[Black "SaqoChess_Twitch"]
[Result "1-0"]
[WhiteElo "2871"]
[BlackElo "2675"]
[TimeControl "180+1"]
[EndTime "14:52:31 PDT"]
[Termination "DanielDardha2005 won by checkmate"]

1. d4 {[%clk 0:03:00.9]} 1... d5 {[%clk 0:02:59.3]} 2. Nf3 {[%clk 0:02:53.8]}
2... e6 {[%clk 0:02:59.1]} 3. c4 {[%clk 0:02:53.8]} 3... Nf6 {[%clk 0:02:58.4]}
4. cxd5 {[%clk 0:02:53.1]} 4... exd5 {[%clk 0:02:58.5]} 5. Bg5 {[%clk
0:02:53.1]} 5... Be7 {[%clk 0:02:58.6]} 6. Nc3 {[%clk 0:02:50.2]} 6... O-O
{[%clk 0:02:59.1]} 7. e3 {[%clk 0:02:46.9]} 7... b6 {[%clk 0:02:58.8]} 8. Bd3
{[%clk 0:02:42.3]} 8... Bb7 {[%clk 0:02:58.7]} 9. Bxf6 {[%clk 0:02:40.1]} 9...
Bxf6 {[%clk 0:02:58.5]} 10. h4 {[%clk 0:02:40.3]} 10... c5 {[%clk 0:02:51]} 11.
Qc2 {[%clk 0:01:48]} 11... h6 {[%clk 0:02:46]} 12. O-O-O {[%clk 0:01:40.1]}
12... Nc6 {[%clk 0:02:42.7]} 13. dxc5 {[%clk 0:01:38.3]} 13... Nb4 {[%clk
0:02:40.5]} 14. Qb3 {[%clk 0:01:25]} 14... bxc5 {[%clk 0:02:33.3]} 15. Bb1
{[%clk 0:01:12.1]} 15... d4 {[%clk 0:02:24.7]} 16. Nxd4 {[%clk 0:01:08.4]} 16...
cxd4 {[%clk 0:02:17.9]} 17. Qxb4 {[%clk 0:01:08.7]} 17... Bxg2 {[%clk
0:02:17.3]} 18. Rhg1 {[%clk 0:01:01]} 18... Bf3 {[%clk 0:02:06.8]} 19. Rxd4
{[%clk 0:00:38.8]} 19... Bxd4 {[%clk 0:02:04.8]} 20. Qxd4 {[%clk 0:00:39.2]}
20... Qxd4 {[%clk 0:02:04.4]} 21. exd4 {[%clk 0:00:39.7]} 21... Rfd8 {[%clk
0:01:59.5]} 22. Kd2 {[%clk 0:00:40.3]} 22... Rd6 {[%clk 0:01:51.3]} 23. Ke3
{[%clk 0:00:39.1]} 23... Rf6 {[%clk 0:01:50.3]} 24. d5 {[%clk 0:00:34.6]} 24...
Re8+ {[%clk 0:01:49.1]} 25. Kd4 {[%clk 0:00:26.2]} 25... Rf4+ {[%clk 0:01:49.3]}
26. Kc5 {[%clk 0:00:26.5]} 26... Rc8+ {[%clk 0:01:49.9]} 27. Kd6 {[%clk
0:00:25.8]} 27... Rd4 {[%clk 0:01:41.1]} 28. Kd7 {[%clk 0:00:03.4]} 28... Rxc3
{[%clk 0:01:28.3]} 29. bxc3 {[%clk 0:00:03.3]} 29... Rxd5+ {[%clk 0:01:29.2]}
30. Ke7 {[%clk 0:00:03.6]} 30... Rc5 {[%clk 0:01:22.2]} 31. Rg3 {[%clk
0:00:04.1]} 31... Rxc3 {[%clk 0:01:20.3]} 32. Be4 {[%clk 0:00:04.6]} 32... Ra3
{[%clk 0:00:49.3]} 33. Rxf3 {[%clk 0:00:03.9]} 33... Rxa2 {[%clk 0:00:47.9]} 34.
Rxf7 {[%clk 0:00:02.8]} 34... Re2 {[%clk 0:00:47.7]} 35. Rf8# {[%clk 0:00:02.9]}
1-0

[Event "Late-Titled-Tuesday-Blitz-April-16-2024"]
[Site "Chess.com"]
[Date "2024.04.16"]
[Round "5"]
[White "Mops_2004"]
[Black "rynos0411"]
[Result "1-0"]
[WhiteElo "2815"]
[BlackElo "2611"]
[TimeControl "180+1"]
[EndTime "14:52:33 PDT"]
[Termination "Mops_2004 won by checkmate"]

1. g3 {[%clk 0:03:00.9]} 1... d5 {[%clk 0:02:58.7]} 2. Nf3 {[%clk 0:03:00.8]}
2... Bf5 {[%clk 0:02:56.4]} 3. Bg2 {[%clk 0:03:00.8]} 3... e6 {[%clk 0:02:56.1]}
4. O-O {[%clk 0:03:00.9]} 4... h6 {[%clk 0:02:55.6]} 5. c4 {[%clk 0:03:01]} 5...
c6 {[%clk 0:02:55.6]} 6. Qb3 {[%clk 0:03:01.1]} 6... Qc8 {[%clk 0:02:47]} 7. d3
{[%clk 0:02:53.5]} 7... Nf6 {[%clk 0:02:41]} 8. cxd5 {[%clk 0:02:53.6]} 8...
exd5 {[%clk 0:02:40.6]} 9. Nc3 {[%clk 0:02:53.3]} 9... Nbd7 {[%clk 0:02:39]} 10.
e4 {[%clk 0:02:52.7]} 10... dxe4 {[%clk 0:02:34]} 11. dxe4 {[%clk 0:02:52.8]}
11... Be6 {[%clk 0:02:33.7]} 12. Qc2 {[%clk 0:02:52.5]} 12... Be7 {[%clk
0:02:27.9]} 13. Nd4 {[%clk 0:02:51.2]} 13... Nc5 {[%clk 0:02:14.9]} 14. b4
{[%clk 0:02:38.8]} 14... Na6 {[%clk 0:02:14.6]} 15. a3 {[%clk 0:02:38.9]} 15...
Bh3 {[%clk 0:02:14.1]} 16. e5 {[%clk 0:02:36.2]} 16... Bxg2 {[%clk 0:01:53.3]}
17. Kxg2 {[%clk 0:02:34.6]} 17... Nd5 {[%clk 0:01:53.2]} 18. Nxd5 {[%clk
0:02:26.9]} 18... cxd5 {[%clk 0:01:51.6]} 19. Qa4+ {[%clk 0:02:27.8]} 19... Qd7
{[%clk 0:01:50.5]} 20. Qxd7+ {[%clk 0:02:26.9]} 20... Kxd7 {[%clk 0:01:51.4]}
21. Rd1 {[%clk 0:02:26.5]} 21... g6 {[%clk 0:01:41.4]} 22. Nb5 {[%clk
0:02:15.5]} 22... Ke6 {[%clk 0:01:38.9]} 23. Be3 {[%clk 0:02:00.9]} 23... Rhd8
{[%clk 0:01:29.8]} 24. Bxa7 {[%clk 0:01:56.5]} 24... Rdc8 {[%clk 0:00:43.3]} 25.
Bb6 {[%clk 0:01:44.2]} 25... Rc6 {[%clk 0:00:40.6]} 26. Nd4+ {[%clk 0:01:44.3]}
26... Kd7 {[%clk 0:00:38.3]} 27. Nxc6 {[%clk 0:01:44]} 27... Kxc6 {[%clk
0:00:39.2]} 28. Be3 {[%clk 0:01:36.2]} 28... Nc7 {[%clk 0:00:39]} 29. f4 {[%clk
0:01:31]} 29... b6 {[%clk 0:00:32]} 30. g4 {[%clk 0:01:29]} 30... Kb7 {[%clk
0:00:31.9]} 31. f5 {[%clk 0:01:27.9]} 31... gxf5 {[%clk 0:00:32.8]} 32. gxf5
{[%clk 0:01:28.6]} 32... Rg8+ {[%clk 0:00:32.3]} 33. Kf3 {[%clk 0:01:29]} 33...
Bg5 {[%clk 0:00:31.7]} 34. Rg1 {[%clk 0:01:27.6]} 34... Re8 {[%clk 0:00:30.8]}
35. Bxg5 {[%clk 0:01:27.3]} 35... hxg5 {[%clk 0:00:31.7]} 36. Rae1 {[%clk
0:01:27.4]} 36... Rh8 {[%clk 0:00:29.2]} 37. Re2 {[%clk 0:01:24.7]} 37... Ra8
{[%clk 0:00:21.4]} 38. Re3 {[%clk 0:01:16.9]} 38... Rh8 {[%clk 0:00:21.2]} 39.
Rxg5 {[%clk 0:01:16.2]} 39... Rxh2 {[%clk 0:00:20.5]} 40. Rg7 {[%clk 0:01:16.2]}
40... d4 {[%clk 0:00:20.3]} 41. Rd3 {[%clk 0:01:15.5]} 41... Rh3+ {[%clk
0:00:20]} 42. Rg3 {[%clk 0:01:12.8]} 42... Rh4 {[%clk 0:00:20.3]} 43. Rg4 {[%clk
0:01:01]} 43... Rh3+ {[%clk 0:00:19.9]} 44. Ke4 {[%clk 0:01:01.4]} 44... Rh1
{[%clk 0:00:20.2]} 45. Kxd4 {[%clk 0:00:59.3]} 45... Kc6 {[%clk 0:00:20.6]} 46.
Rc3+ {[%clk 0:00:58.9]} 46... Kd7 {[%clk 0:00:21.2]} 47. e6+ {[%clk 0:00:59.3]}
47... fxe6 {[%clk 0:00:21.2]} 48. Rg7+ {[%clk 0:00:59.4]} 48... Kd6 {[%clk
0:00:21.4]} 49. Rgxc7 {[%clk 0:00:58.8]} 49... exf5 {[%clk 0:00:20.9]} 50. R3c6#
{[%clk 0:00:58.1]} 1-0

[Event "Late-Titled-Tuesday-Blitz-April-16-2024"]
[Site "Chess.com"]
[Date "2024.04.16"]
[Round "5"]
[White "protectiago"]
[Black "Giantgoogachess"]
[Result "0-1"]
[WhiteElo "2031"]
[BlackElo "2300"]
[TimeControl "180+1"]
[EndTime "14:52:33 PDT"]
[Termination "Giantgoogachess won by resignation"]

1. d4 {[%clk 0:03:00.2]} 1... Nf6 {[%clk 0:02:57.9]} 2. c4 {[%clk 0:03:00.2]}
2... g6 {[%clk 0:02:57.3]} 3. Nc3 {[%clk 0:02:59.8]} 3... Bg7 {[%clk 0:02:57.3]}
4. e4 {[%clk 0:03:00]} 4... d6 {[%clk 0:02:57.5]} 5. Nf3 {[%clk 0:02:59.8]} 5...
O-O {[%clk 0:02:58]} 6. Be2 {[%clk 0:02:59.3]} 6... e5 {[%clk 0:02:58.2]} 7. O-O
{[%clk 0:02:58.3]} 7... Bg4 {[%clk 0:02:58.8]} 8. d5 {[%clk 0:02:57.8]} 8... a5
{[%clk 0:02:53.9]} 9. Ne1 {[%clk 0:02:53.3]} 9... Bd7 {[%clk 0:02:53]} 10. Nd3
{[%clk 0:02:53.1]} 10... Na6 {[%clk 0:02:46.3]} 11. Be3 {[%clk 0:02:51.3]} 11...
b6 {[%clk 0:02:45.1]} 12. a3 {[%clk 0:02:43.9]} 12... a4 {[%clk 0:02:35.4]} 13.
b4 {[%clk 0:02:25.4]} 13... axb3 {[%clk 0:02:35]} 14. Qxb3 {[%clk 0:02:24.4]}
14... h6 {[%clk 0:02:31.9]} 15. c5 {[%clk 0:01:54.4]} 15... Nxc5 {[%clk
0:02:28.1]} 16. Nxc5 {[%clk 0:01:53.4]} 16... bxc5 {[%clk 0:02:29]} 17. Bb5
{[%clk 0:01:48.7]} 17... Bxb5 {[%clk 0:02:27.8]} 18. Qxb5 {[%clk 0:01:47.7]}
18... Qd7 {[%clk 0:02:27.4]} 19. Rfb1 {[%clk 0:01:40.3]} 19... Ra7 {[%clk
0:02:22.1]} 20. f3 {[%clk 0:01:40]} 20... Rfa8 {[%clk 0:02:21.4]} 21. a4 {[%clk
0:01:33]} 21... Qxb5 {[%clk 0:02:14.8]} 22. Nxb5 {[%clk 0:01:32.4]} 22... Rxa4
{[%clk 0:02:13.7]} 23. Rxa4 {[%clk 0:01:32]} 23... Rxa4 {[%clk 0:02:14.6]} 24.
Nxc7 {[%clk 0:01:32.6]} 24... Ra3 {[%clk 0:02:04.8]} 25. Rb8+ {[%clk 0:01:30.8]}
25... Kh7 {[%clk 0:01:59.6]} 26. Kf2 {[%clk 0:01:29.2]} 26... Ra2+ {[%clk
0:01:58.3]} 27. Kg3 {[%clk 0:01:25.3]} 27... Nh5+ {[%clk 0:01:57.2]} 28. Kh3
{[%clk 0:01:25.3]} 28... f5 {[%clk 0:01:56.4]} 29. Rd8 {[%clk 0:01:20.6]} 29...
f4 {[%clk 0:01:55.4]} 30. Bxc5 {[%clk 0:01:02.6]} 30... dxc5 {[%clk 0:01:54.4]}
31. d6 {[%clk 0:01:02.9]} 31... Nf6 {[%clk 0:01:51.5]} 32. Nd5 {[%clk
0:00:56.3]} 32... Nxd5 {[%clk 0:01:47.1]} 33. exd5 {[%clk 0:00:57.2]} 33... Rd2
{[%clk 0:01:43.1]} 34. d7 {[%clk 0:00:52.4]} 34... Rxd5 {[%clk 0:01:42.7]} 35.
g3 {[%clk 0:00:47.4]} 35... c4 {[%clk 0:01:41.2]} 36. Kg4 {[%clk 0:00:41]} 36...
c3 {[%clk 0:01:40.3]} 37. gxf4 {[%clk 0:00:38.1]} 37... exf4 {[%clk 0:01:41.2]}
38. Kxf4 {[%clk 0:00:36.9]} 38... c2 {[%clk 0:01:41.9]} 39. Rc8 {[%clk
0:00:36.8]} 39... Rxd7 {[%clk 0:01:40.8]} 40. Rxc2 {[%clk 0:00:36.8]} 40... h5
{[%clk 0:01:41.1]} 41. Rc6 {[%clk 0:00:35]} 41... Bh6+ {[%clk 0:01:41.5]} 42.
Ke4 {[%clk 0:00:34.6]} 42... Kg7 {[%clk 0:01:42.4]} 43. h3 {[%clk 0:00:33]}
43... Rf7 {[%clk 0:01:43.3]} 44. Rc3 {[%clk 0:00:30.2]} 44... Rf4+ {[%clk
0:01:43.5]} 45. Ke5 {[%clk 0:00:30.6]} 45... Rf5+ {[%clk 0:01:43.4]} 46. Ke4
{[%clk 0:00:30.5]} 46... Kh7 {[%clk 0:01:44.1]} 47. Rc7+ {[%clk 0:00:30.1]}
47... Bg7 {[%clk 0:01:43.4]} 48. Rb7 {[%clk 0:00:30.2]} 48... Ra5 {[%clk
0:01:43.7]} 49. Rb3 {[%clk 0:00:29.3]} 49... g5 {[%clk 0:01:43.8]} 50. Rd3
{[%clk 0:00:28.2]} 50... Kg6 {[%clk 0:01:43.4]} 51. Rd6+ {[%clk 0:00:27.3]}
51... Bf6 {[%clk 0:01:44]} 52. Rb6 {[%clk 0:00:19.7]} 52... Ra4+ {[%clk
0:01:44.4]} 53. Ke3 {[%clk 0:00:19.6]} 53... Kf5 {[%clk 0:01:42.8]} 54. Rb5+
{[%clk 0:00:18.8]} 54... Be5 {[%clk 0:01:43.4]} 55. Rb3 {[%clk 0:00:15.9]} 55...
Rh4 {[%clk 0:01:43.5]} 56. Kf2 {[%clk 0:00:09.8]} 56... Rxh3 {[%clk 0:01:43.3]}
57. Kg2 {[%clk 0:00:10.3]} 57... Rh2+ {[%clk 0:01:43.6]} 58. Kg1 {[%clk
0:00:10.3]} 58... Ra2 {[%clk 0:01:44.5]} 59. Kf1 {[%clk 0:00:08.8]} 59... Kf4
{[%clk 0:01:44.4]} 60. Kg1 {[%clk 0:00:08.8]} 60... Kg3 {[%clk 0:01:43.5]} 61.
Kf1 {[%clk 0:00:06.9]} 61... Rf2+ {[%clk 0:01:42.5]} 0-1

[Event "Late-Titled-Tuesday-Blitz-April-16-2024"]
[Site "Chess.com"]
[Date "2024.04.16"]
[Round "5"]
[White "Fjal"]
[Black "campochess"]
[Result "1-0"]
[WhiteElo "2311"]
[BlackElo "2199"]
[TimeControl "180+1"]
[EndTime "14:52:34 PDT"]
[Termination "Fjal won by checkmate"]

1. Nf3 {[%clk 0:02:59.1]} 1... c5 {[%clk 0:02:59.9]} 2. g3 {[%clk 0:03:00]} 2...
Nc6 {[%clk 0:02:59.8]} 3. Bg2 {[%clk 0:02:56.1]} 3... g6 {[%clk 0:02:59.9]} 4.
O-O {[%clk 0:02:50.9]} 4... Bg7 {[%clk 0:02:59.8]} 5. e4 {[%clk 0:02:51]} 5...
d6 {[%clk 0:02:59.9]} 6. d3 {[%clk 0:02:51.5]} 6... Nf6 {[%clk 0:02:59.5]} 7.
Nc3 {[%clk 0:02:52]} 7... Nd7 {[%clk 0:02:59.2]} 8. a4 {[%clk 0:02:52]} 8... a6
{[%clk 0:02:58.4]} 9. Nd2 {[%clk 0:02:51.6]} 9... O-O {[%clk 0:02:57.8]} 10. Nc4
{[%clk 0:02:51.5]} 10... Nde5 {[%clk 0:02:56.3]} 11. f4 {[%clk 0:02:49.2]} 11...
Nxc4 {[%clk 0:02:54.9]} 12. dxc4 {[%clk 0:02:50.1]} 12... Nd4 {[%clk 0:02:47]}
13. Nd5 {[%clk 0:02:48.6]} 13... e6 {[%clk 0:02:46.8]} 14. Ne3 {[%clk
0:02:48.2]} 14... Qe7 {[%clk 0:02:42.9]} 15. c3 {[%clk 0:02:48]} 15... Nc6
{[%clk 0:02:42.9]} 16. f5 {[%clk 0:02:43.7]} 16... Ne5 {[%clk 0:02:31.8]} 17. g4
{[%clk 0:02:37.8]} 17... f6 {[%clk 0:02:31.7]} 18. fxg6 {[%clk 0:02:32.7]} 18...
hxg6 {[%clk 0:02:30.5]} 19. h4 {[%clk 0:02:33.1]} 19... Bd7 {[%clk 0:02:27.5]}
20. h5 {[%clk 0:02:29.9]} 20... Be8 {[%clk 0:02:24.5]} 21. Qe2 {[%clk
0:02:24.3]} 21... gxh5 {[%clk 0:02:22.5]} 22. gxh5 {[%clk 0:02:24.1]} 22... Qf7
{[%clk 0:02:22.6]} 23. h6 {[%clk 0:01:35.9]} 23... Bxh6 {[%clk 0:02:21.2]} 24.
Ng4 {[%clk 0:01:36.4]} 24... Nxg4 {[%clk 0:02:15.3]} 25. Qxg4+ {[%clk
0:01:37.3]} 25... Bg7 {[%clk 0:02:15.1]} 26. Bf4 {[%clk 0:01:11.6]} 26... e5
{[%clk 0:02:12.9]} 27. Be3 {[%clk 0:01:11.5]} 27... Bd7 {[%clk 0:02:12.7]} 28.
Qg3 {[%clk 0:01:05.9]} 28... Qxc4 {[%clk 0:02:07.1]} 29. Rad1 {[%clk 0:01:00.9]}
29... Qe6 {[%clk 0:02:04.4]} 30. Bh6 {[%clk 0:00:54.6]} 30... Rf7 {[%clk
0:02:01.9]} 31. Rf5 {[%clk 0:00:51.3]} 31... Kf8 {[%clk 0:01:57.8]} 32. Be3
{[%clk 0:00:45.6]} 32... Qb3 {[%clk 0:01:50.9]} 33. Bf3 {[%clk 0:00:45.2]} 33...
Bxf5 {[%clk 0:01:48.9]} 34. exf5 {[%clk 0:00:44.9]} 34... Ke7 {[%clk 0:01:44]}
35. Bh5 {[%clk 0:00:42]} 35... Raf8 {[%clk 0:01:43.1]} 36. Qg4 {[%clk
0:00:37.8]} 36... b5 {[%clk 0:01:30.7]} 37. axb5 {[%clk 0:00:28.6]} 37... axb5
{[%clk 0:01:30]} 38. Qe4 {[%clk 0:00:26.9]} 38... Rb8 {[%clk 0:01:15.9]} 39. Qc6
{[%clk 0:00:21.8]} 39... Rd8 {[%clk 0:01:08.4]} 40. Bxc5 {[%clk 0:00:17.4]}
40... dxc5 {[%clk 0:00:54.9]} 41. Qc7+ {[%clk 0:00:17]} 41... Ke8 {[%clk
0:00:49.2]} 42. Rxd8# {[%clk 0:00:16.8]} 1-0

[Event "Late-Titled-Tuesday-Blitz-April-16-2024"]
[Site "Chess.com"]
[Date "2024.04.16"]
[Round "5"]
[White "mbojan"]
[Black "HansOnTwitch"]
[Result "0-1"]
[WhiteElo "2972"]
[BlackElo "3173"]
[TimeControl "180+1"]
[EndTime "14:52:36 PDT"]
[Termination "HansOnTwitch won on time"]

1. g3 {[%clk 0:03:00.9]} 1... d5 {[%clk 0:02:50.5]} 2. Bg2 {[%clk 0:03:00.8]}
2... e5 {[%clk 0:02:49.3]} 3. c4 {[%clk 0:02:56.9]} 3... d4 {[%clk 0:02:46.5]}
4. d3 {[%clk 0:02:56.9]} 4... Nf6 {[%clk 0:02:43.4]} 5. Nf3 {[%clk 0:02:56.9]}
5... Nc6 {[%clk 0:02:43.4]} 6. O-O {[%clk 0:02:56.7]} 6... a5 {[%clk 0:02:43.5]}
7. e3 {[%clk 0:02:55.2]} 7... Be7 {[%clk 0:02:35.8]} 8. exd4 {[%clk 0:02:54.9]}
8... exd4 {[%clk 0:02:36.7]} 9. Bg5 {[%clk 0:02:54.9]} 9... O-O {[%clk
0:02:36.6]} 10. Nbd2 {[%clk 0:02:54.3]} 10... h6 {[%clk 0:02:37.1]} 11. Bxf6
{[%clk 0:02:54]} 11... Bxf6 {[%clk 0:02:38]} 12. Re1 {[%clk 0:02:53.8]} 12...
Bf5 {[%clk 0:02:35.4]} 13. Ne4 {[%clk 0:02:53.8]} 13... Be7 {[%clk 0:02:35.9]}
14. a3 {[%clk 0:02:44.6]} 14... a4 {[%clk 0:02:35]} 15. Qc2 {[%clk 0:02:40.7]}
15... Re8 {[%clk 0:02:34.5]} 16. Re2 {[%clk 0:02:40.7]} 16... Bf8 {[%clk
0:02:33.8]} 17. Rae1 {[%clk 0:02:41.3]} 17... Qd7 {[%clk 0:02:34.2]} 18. Nh4
{[%clk 0:02:37.5]} 18... Bh7 {[%clk 0:02:27.1]} 19. Qd1 {[%clk 0:02:28.9]} 19...
Na5 {[%clk 0:02:21.9]} 20. f4 {[%clk 0:02:08.2]} 20... Kh8 {[%clk 0:02:19.1]}
21. Nf2 {[%clk 0:02:06.6]} 21... Re3 {[%clk 0:02:15.7]} 22. Be4 {[%clk
0:01:49.3]} 22... f5 {[%clk 0:02:08]} 23. Bh1 {[%clk 0:01:26.8]} 23... Bc5
{[%clk 0:02:07.7]} 24. Ng2 {[%clk 0:01:22.9]} 24... Rae8 {[%clk 0:02:07.4]} 25.
Qc2 {[%clk 0:01:04.3]} 25... Nb3 {[%clk 0:02:06.6]} 26. Nd1 {[%clk 0:00:47.9]}
26... Bg6 {[%clk 0:02:02.9]} 27. Ngxe3 {[%clk 0:00:25.7]} 27... dxe3 {[%clk
0:02:02.9]} 28. Rxe3 {[%clk 0:00:26.6]} 28... Bh5 {[%clk 0:01:34]} 29. Kf1
{[%clk 0:00:26.5]} 29... Bxe3 {[%clk 0:01:32.8]} 30. Nxe3 {[%clk 0:00:27.4]}
30... Qd4 {[%clk 0:01:30.1]} 31. Qc3 {[%clk 0:00:25.2]} 31... Rxe3 {[%clk
0:01:27.8]} 32. Qxd4 {[%clk 0:00:20.8]} 32... Rxe1+ {[%clk 0:01:27.2]} 33. Kxe1
{[%clk 0:00:21.7]} 33... Nxd4 {[%clk 0:01:27.7]} 34. Bxb7 {[%clk 0:00:22.6]}
34... c5 {[%clk 0:01:24.1]} 35. Bc8 {[%clk 0:00:19.6]} 35... Be8 {[%clk
0:01:23.9]} 36. Bb7 {[%clk 0:00:12.3]} 36... g5 {[%clk 0:01:23.3]} 37. fxg5
{[%clk 0:00:11.4]} 37... hxg5 {[%clk 0:01:24.2]} 38. Kd2 {[%clk 0:00:07]} 38...
Kg7 {[%clk 0:01:21.1]} 39. Ke3 {[%clk 0:00:06.9]} 39... Kf6 {[%clk 0:01:21.1]}
40. h4 {[%clk 0:00:07.4]} 40... gxh4 {[%clk 0:01:17.3]} 41. gxh4 {[%clk
0:00:08.3]} 41... Ke5 {[%clk 0:01:17.4]} 42. Bc8 {[%clk 0:00:08.7]} 42... Bh5
{[%clk 0:01:17]} 43. Bd7 {[%clk 0:00:08.1]} 43... f4+ {[%clk 0:01:13.4]} 44. Kd2
{[%clk 0:00:08.6]} 44... Nf3+ {[%clk 0:01:07.3]} 45. Kc3 {[%clk 0:00:02.5]}
45... Nxh4 {[%clk 0:01:07.6]} 46. Bxa4 {[%clk 0:00:02.9]} 46... f3 {[%clk
0:01:08.1]} 0-1

[Event "Late-Titled-Tuesday-Blitz-April-16-2024"]
[Site "Chess.com"]
[Date "2024.04.16"]
[Round "5"]
[White "RuperezA"]
[Black "kingofthenil"]
[Result "1-0"]
[WhiteElo "2614"]
[BlackElo "2792"]
[TimeControl "180+1"]
[EndTime "14:52:45 PDT"]
[Termination "RuperezA won on time"]

1. e4 {[%clk 0:03:00.9]} 1... Nc6 {[%clk 0:02:49.8]} 2. Nf3 {[%clk 0:03:00.6]}
2... d5 {[%clk 0:02:50]} 3. exd5 {[%clk 0:02:58]} 3... Qxd5 {[%clk 0:02:50.9]}
4. Nc3 {[%clk 0:02:57.8]} 4... Qh5 {[%clk 0:02:51.6]} 5. Be2 {[%clk 0:02:54.5]}
5... Bg4 {[%clk 0:02:52.1]} 6. O-O {[%clk 0:02:48.4]} 6... O-O-O {[%clk
0:02:52.5]} 7. h3 {[%clk 0:02:48.5]} 7... Bxh3 {[%clk 0:02:51.8]} 8. gxh3 {[%clk
0:02:29.6]} 8... Qxh3 {[%clk 0:02:52.7]} 9. Ng5 {[%clk 0:02:08.5]} 9... Qh4
{[%clk 0:02:48.3]} 10. Bg4+ {[%clk 0:02:08]} 10... Kb8 {[%clk 0:02:41.1]} 11.
Nxf7 {[%clk 0:02:05.4]} 11... Nh6 {[%clk 0:02:41]} 12. Nxd8 {[%clk 0:00:57.4]}
12... Nxg4 {[%clk 0:02:37.6]} 13. Nxc6+ {[%clk 0:00:58.3]} 13... bxc6 {[%clk
0:02:33.4]} 14. Kg2 {[%clk 0:00:59.2]} 14... e6 {[%clk 0:02:20.8]} 15. Ne4
{[%clk 0:00:54]} 15... Qh2+ {[%clk 0:01:49.9]} 16. Kf3 {[%clk 0:00:53.1]} 16...
Qh5 {[%clk 0:01:47]} 17. Ke2 {[%clk 0:00:34.8]} 17... Bc5 {[%clk 0:01:10.7]} 18.
f3 {[%clk 0:00:22.2]} 18... Qh2+ {[%clk 0:01:10.3]} 19. Kd3 {[%clk 0:00:21.8]}
19... Rd8+ {[%clk 0:00:59.9]} 20. Kc3 {[%clk 0:00:16.5]} 20... Bb6 {[%clk
0:00:12.8]} 21. Kb3 {[%clk 0:00:15.2]} 21... Qe5 {[%clk 0:00:12.2]} 22. c4
{[%clk 0:00:15.2]} 22... Rd3+ {[%clk 0:00:06.1]} 23. Kc2 {[%clk 0:00:15.2]}
23... Qd4 {[%clk 0:00:02.6]} 24. Qe2 {[%clk 0:00:12.8]} 24... Qxc4+ {[%clk
0:00:01.8]} 25. Kb1 {[%clk 0:00:13.5]} 1-0

[Event "Late-Titled-Tuesday-Blitz-April-16-2024"]
[Site "Chess.com"]
[Date "2024.04.16"]
[Round "5"]
[White "Viktoker"]
[Black "RebecaJimnz"]
[Result "1-0"]
[WhiteElo "2482"]
[BlackElo "2254"]
[TimeControl "180+1"]
[EndTime "14:52:49 PDT"]
[Termination "Viktoker won by resignation"]

1. d4 {[%clk 0:02:56.1]} 1... d5 {[%clk 0:02:59.3]} 2. c4 {[%clk 0:02:55.1]}
2... c6 {[%clk 0:02:59.5]} 3. cxd5 {[%clk 0:02:55]} 3... cxd5 {[%clk 0:02:59.4]}
4. Bf4 {[%clk 0:02:55.3]} 4... Nf6 {[%clk 0:02:59.7]} 5. Nc3 {[%clk 0:02:55.7]}
5... a6 {[%clk 0:02:57]} 6. e3 {[%clk 0:02:55.6]} 6... e6 {[%clk 0:02:57.5]} 7.
Bd3 {[%clk 0:02:55.8]} 7... Bd6 {[%clk 0:02:58]} 8. Bxd6 {[%clk 0:02:56]} 8...
Qxd6 {[%clk 0:02:58.9]} 9. f4 {[%clk 0:02:56.9]} 9... O-O {[%clk 0:02:59.2]} 10.
Nf3 {[%clk 0:02:57.5]} 10... Nc6 {[%clk 0:02:59.7]} 11. O-O {[%clk 0:02:57.8]}
11... b5 {[%clk 0:03:00.1]} 12. Ne5 {[%clk 0:02:57.2]} 12... Bb7 {[%clk
0:03:00.1]} 13. Rf3 {[%clk 0:02:53.4]} 13... Ne7 {[%clk 0:02:58.7]} 14. Rh3
{[%clk 0:02:53.3]} 14... Ne4 {[%clk 0:02:56.4]} 15. Qh5 {[%clk 0:02:42.5]} 15...
h6 {[%clk 0:02:50.9]} 16. Bxe4 {[%clk 0:02:11.7]} 16... dxe4 {[%clk 0:02:50.1]}
17. g4 {[%clk 0:02:07.2]} 17... f6 {[%clk 0:02:26.1]} 18. Ng6 {[%clk 0:02:05.8]}
18... b4 {[%clk 0:02:04.8]} 19. Na4 {[%clk 0:02:00.9]} 19... Nxg6 {[%clk
0:02:03.4]} 20. Qxg6 {[%clk 0:01:58.5]} 20... Qc6 {[%clk 0:01:54.8]} 21. Nc5
{[%clk 0:01:54.8]} 21... Ra7 {[%clk 0:01:18.1]} 22. Rxh6 {[%clk 0:01:50.5]}
22... Qe8 {[%clk 0:01:18.1]} 23. Qh7+ {[%clk 0:01:08.9]} 23... Kf7 {[%clk
0:01:16.3]} 24. Qg6+ {[%clk 0:01:02.2]} 24... Kg8 {[%clk 0:01:16.1]} 25. Qh7+
{[%clk 0:01:02.8]} 25... Kf7 {[%clk 0:01:16.3]} 26. Rg6 {[%clk 0:01:03.5]} 26...
Rg8 {[%clk 0:01:08.1]} 27. g5 {[%clk 0:01:01.1]} 27... Bd5 {[%clk 0:00:14]} 28.
gxf6 {[%clk 0:00:53.3]} 28... Kf8 {[%clk 0:00:14.2]} 29. Kf2 {[%clk 0:00:39.8]}
29... Qf7 {[%clk 0:00:09.5]} 30. Rag1 {[%clk 0:00:36.9]} 30... Ke8 {[%clk
0:00:04]} 31. Rxg7 {[%clk 0:00:32.8]} 31... Rxg7 {[%clk 0:00:03.5]} 32. fxg7
{[%clk 0:00:32.2]} 32... e5 {[%clk 0:00:01.8]} 33. g8=Q+ {[%clk 0:00:31.3]}
33... Qxg8 {[%clk 0:00:02.2]} 34. Rxg8+ {[%clk 0:00:31.8]} 34... Bxg8 {[%clk
0:00:02.3]} 35. Qxg8+ {[%clk 0:00:32.7]} 1-0